[Event "FIN-ch Seniors 2019"]
[Site "Helsinki"]
[Date "2019.06.12"]
[Round "1.2"]
[White "Kivipelto, Kaj"]
[Black "Lyly, Seppo"]
[Result "1-0"]
[ECO "A01"]
[WhiteElo "2130"]
[BlackElo "1907"]
[Annotator "NA"]
[PlyCount "103"]
[EventDate "2019.06.10"]
[EventType "swiss"]
[EventCountry "FIN"]
[SourceTitle "playchess.com"]
[Source "ChessBase"]
[SourceQuality "1"]
[TimeControl "40/5400+30:1800+30"]

1. b3 {[%emt 0:00:19]} e5 {[%emt 0:00:00]} 2. Bb2 {[%emt 0:00:08]} d6 {[%emt 0:
00:31]} 3. c4 {[%emt 0:00:12]} Nf6 {[%emt 0:00:25]} 4. g3 {[%emt 0:03:43]} Be7
{[%emt 0:02:16]} 5. Bg2 {[%emt 0:00:20]} O-O {[%emt 0:00:19]} 6. d3 {[%emt 0:
01:06]} c6 {[%emt 0:07:47]} 7. Nd2 {[%emt 0:04:02]} Na6 {[%emt 0:04:35]} 8.
Ngf3 {[%emt 0:01:51]} h6 {[%emt 0:06:25]} 9. O-O {[%emt 0:00:54]} Bf5 {[%emt 0:
00:27]} 10. a3 {[%emt 0:05:15]} Bh7 {[%emt 0:05:32]} 11. b4 {[%emt 0:16:36]} e4
{[%emt 0:08:47]} 12. dxe4 {[%emt 0:01:30]} Nxe4 {[%emt 0:00:17]} 13. Nd4 {
[%emt 0:06:13]} d5 {[%emt 0:04:27]} 14. cxd5 {[%emt 0:08:48]} cxd5 {[%emt 0:01:
36]} 15. N2f3 {[%emt 0:01:40]} Nc7 {[%emt 0:06:46]} 16. Qb3 {[%emt 0:02:05]}
Qd6 {[%emt 0:06:38]} 17. Rfd1 {[%emt 0:01:12]} Rac8 {[%emt 0:05:06]} 18. Bh3 {
[%emt 0:05:25]} f5 {[%emt 0:04:42]} 19. e3 {[%emt 0:05:18]} Ng5 {[%emt 0:06:10]
} 20. Nxg5 {[%emt 0:06:45]} hxg5 {[%emt 0:01:36]} 21. Rac1 {[%emt 0:00:55]} Bg6
{[%emt 0:04:50]} 22. Rc5 {[%emt 0:05:19]} Qd8 {[%emt 0:04:23]} 23. Rxc7 {
[%emt 0:05:48]} Qxc7 {[%emt 0:01:19]} 24. Qxd5+ {[%emt 0:03:11]} Bf7 {[%emt 0:
03:13]} 25. Qxf5 {[%emt 0:04:01]} Bb3 {[%emt 0:07:04]} 26. Qg6 {[%emt 0:03:33]}
Rf6 {[%emt 0:03:52]} 27. Qxg5 {[%emt 0:01:57]} Rd8 {[%emt 0:01:16]} 28. Rc1 {
[%emt 0:00:40]} Rc6 {[%emt 0:00:53]} 29. Rxc6 {[%emt 0:01:22]} bxc6 {[%emt 0:
00:50]} 30. Qg6 {[%emt 0:00:53]} Bf7 {[%emt 0:01:21]} 31. Qe4 {[%emt 0:04:29]}
Bf6 {[%emt 0:00:44]} 32. Be6 {[%emt 0:00:00]} Qe7 {[%emt 0:00:34]} 33. Bxf7+ {
[%emt 0:00:00]} Qxf7 {[%emt 0:00:16]} 34. Qxc6 {[%emt 0:00:00]} Qa2 {[%emt 0:
00:50]} 35. Qc1 {[%emt 0:00:00]} Qd5 {[%emt 0:00:32]} 36. Qd1 {[%emt 0:00:33]}
Rc8 {[%emt 0:00:16]} 37. h4 {[%emt 0:00:50]} Qa2 {[%emt 0:00:23]} 38. Qd2 {
[%emt 0:00:27]} Rd8 {[%emt 0:00:17]} 39. Qc1 {[%emt 0:01:25]} Qd5 {[%emt 0:00:
15]} 40. Qd1 {[%emt 0:00:00]} Qe4 {[%emt 0:00:00]} 41. Qc1 {[%emt 0:06:12]} Rd5
{[%emt 0:02:03]} 42. f3 {[%emt 0:01:35]} Qg6 {[%emt 0:00:47]} 43. Kf2 {[%emt 0:
00:17]} Qe8 {[%emt 0:01:39]} 44. Ne2 {[%emt 0:01:59]} Bxb2 {[%emt 0:00:50]} 45.
Qxb2 {[%emt 0:00:10]} Qd7 {[%emt 0:00:08]} 46. Qb3 {[%emt 0:02:19]} Kh8 {
[%emt 0:00:51]} 47. Nd4 {[%emt 0:00:14]} Rd6 {[%emt 0:01:06]} 48. g4 {[%emt 0:
04:24]} Rf6 {[%emt 0:01:37]} 49. Kg2 {[%emt 0:01:46]} Qb7 {[%emt 0:03:27]} 50.
Qc3 {[%emt 0:00:55]} Qd5 {[%emt 0:00:57]} 51. Nf5 {[%emt 0:00:40]} Rg6 {
[%emt 0:01:34]} 52. e4 {[%emt 0:02:08]} 1-0

[Event "FIN-ch Seniors 2019"]
[Site "Helsinki"]
[Date "2019.06.12"]
[Round "1.3"]
[White "Patola, Eero"]
[Black "Hurme, Harri"]
[Result "0-1"]
[ECO "A36"]
[WhiteElo "1853"]
[BlackElo "2122"]
[Annotator "NA"]
[PlyCount "90"]
[EventDate "2019.06.10"]
[EventType "swiss"]
[EventCountry "FIN"]
[SourceTitle "playchess.com"]
[Source "ChessBase"]
[SourceQuality "1"]
[TimeControl "40/5400+30:1800+30"]

1. c4 {[%emt 0:00:00]} c5 {[%emt 0:00:00]} 2. Nc3 {[%emt 0:00:00]} Nc6 {
[%emt 0:00:01]} 3. g3 {[%emt 0:00:45]} Nf6 {[%emt 0:00:27]} 4. Bg2 {[%emt 0:00:
09]} d6 {[%emt 0:01:10]} 5. d3 {[%emt 0:00:25]} e6 {[%emt 0:01:58]} 6. e4 {
[%emt 0:00:34]} Be7 {[%emt 0:00:31]} 7. Nge2 {[%emt 0:00:09]} Rb8 {[%emt 0:01:
22]} 8. O-O {[%emt 0:01:02]} a6 {[%emt 0:00:18]} 9. f4 {[%emt 0:01:34]} Bd7 {
[%emt 0:02:39]} 10. h3 {[%emt 0:01:19]} b5 {[%emt 0:00:41]} 11. cxb5 {[%emt 0:
00:51]} axb5 {[%emt 0:00:03]} 12. b3 {[%emt 0:01:01]} O-O {[%emt 0:03:40]} 13.
g4 {[%emt 0:00:39]} b4 {[%emt 0:04:24]} 14. Nb1 {[%emt 0:00:42]} Nd4 {[%emt 0:
03:12]} 15. g5 {[%emt 0:04:26]} Ne8 {[%emt 0:00:31]} 16. Bb2 {[%emt 0:03:09]}
e5 {[%emt 0:03:02]} 17. h4 {[%emt 0:01:11]} Bg4 {[%emt 0:01:13]} 18. Bxd4 {
[%emt 0:00:37]} cxd4 {[%emt 0:00:42]} 19. f5 {[%emt 0:01:31]} Nc7 {[%emt 0:02:
11]} 20. Bf3 {[%emt 0:01:27]} Bxf3 {[%emt 0:00:32]} 21. Rxf3 {[%emt 0:00:08]}
f6 {[%emt 0:00:46]} 22. g6 {[%emt 0:01:09]} d5 {[%emt 0:08:21]} 23. gxh7+ {
[%emt 0:02:46]} Kh8 {[%emt 0:00:15]} 24. Ng3 {[%emt 0:02:08]} dxe4 {[%emt 0:00:
41]} 25. dxe4 {[%emt 0:01:37]} Nb5 {[%emt 0:01:33]} 26. h5 {[%emt 0:00:57]} Qb6
{[%emt 0:05:33]} 27. Rd3 {[%emt 0:01:36]} Nc3 {[%emt 0:02:02]} 28. Qf3 {
[%emt 0:02:52]} Rfc8 {[%emt 0:02:30]} 29. Nd2 {[%emt 0:01:50]} Ra8 {[%emt 0:00:
48]} 30. Nc4 {[%emt 0:02:18]} Rxc4 {[%emt 0:01:38]} 31. bxc4 {[%emt 0:01:11]}
b3 {[%emt 0:00:04]} 32. h6 {[%emt 0:01:22]} gxh6 {[%emt 0:00:19]} 33. Qg4 {
[%emt 0:02:55]} Qd8 {[%emt 0:06:46]} 34. Nh5 {[%emt 0:00:48]} Qf8 {[%emt 0:00:
05]} 35. Rg3 {[%emt 0:05:48]} b2 {[%emt 0:00:58]} 36. Re1 {[%emt 0:01:30]} b1=Q
{[%emt 0:03:31]} 37. Rxb1 {[%emt 0:00:21]} Nxb1 {[%emt 0:00:02]} 38. Qd1 {
[%emt 0:02:32]} Nc3 {[%emt 0:00:51]} 39. Qd3 {[%emt 0:05:27]} Qf7 {[%emt 0:02:
05]} 40. Rg6 {[%emt 0:00:00]} Qxh7 {[%emt 0:00:00]} 41. Qh3 {[%emt 0:25:11]}
Rg8 {[%emt 0:07:11]} 42. Qg4 {[%emt 0:06:05]} d3 {[%emt 0:01:32]} 43. Qg2 {
[%emt 0:02:30]} d2 {[%emt 0:01:42]} 44. Qxd2 {[%emt 0:02:08]} Rxg6+ {[%emt 0:
00:14]} 45. fxg6 {[%emt 0:01:10]} Qxg6+ {[%emt 0:00:04]} 0-1

[Event "FIN-ch Seniors 2019"]
[Site "Helsinki"]
[Date "2019.06.12"]
[Round "1.4"]
[White "Aakio, Seppo"]
[Black "Kangas, Mauno"]
[Result "1-0"]
[ECO "B09"]
[WhiteElo "2051"]
[BlackElo "1831"]
[Annotator "NA"]
[PlyCount "64"]
[EventDate "2019.06.10"]
[EventType "swiss"]
[EventCountry "FIN"]
[SourceTitle "playchess.com"]
[Source "ChessBase"]
[SourceQuality "1"]
[TimeControl "40/5400+30:1800+30"]

1. e4 {[%emt 1:30:30]} d6 {[%emt 1:30:30]} 2. d4 {[%emt 0:00:30]} Nf6 {[%emt 0:
00:30]} 3. Nc3 {[%emt 0:00:30]} g6 {[%emt 0:00:30]} 4. f4 {[%emt 0:00:30]} Bg7
{[%emt 0:00:30]} 5. Nf3 {[%emt 0:00:30]} c6 {[%emt 0:00:30]} 6. Bd3 {[%emt 0:
00:30]} b5 {[%emt 0:00:30]} 7. e5 {[%emt 0:00:30]} dxe5 {[%emt 0:00:30]} 8.
fxe5 {[%emt 0:00:30]} Nd5 {[%emt 0:00:30]} 9. Be4 {[%emt 0:00:30]} a6 {[%emt 0:
00:30]} 10. O-O {[%emt 0:00:30]} O-O {[%emt 0:00:30]} 11. h3 {[%emt 0:00:30]}
f5 {[%emt 0:00:30]} 12. Bd3 {[%emt 0:00:30]} Be6 {[%emt 0:00:30]} 13. Ne2 {
[%emt 0:00:30]} Nb4 {[%emt 0:00:30]} 14. Nf4 {[%emt 0:00:30]} Bd5 {[%emt 0:00:
30]} 15. Be2 {[%emt 0:00:30]} Be4 {[%emt 0:00:30]} 16. Ne1 {[%emt 0:00:30]} Qb6
{[%emt 0:00:30]} 17. c3 {[%emt 0:00:30]} Nd5 {[%emt 0:00:30]} 18. Ne6 {[%emt 0:
00:30]} Re8 {[%emt 0:00:30]} 19. Nxg7 {[%emt 0:00:30]} Kxg7 {[%emt 0:00:30]}
20. Kh1 {[%emt 0:00:30]} Nd7 {[%emt 0:00:30]} 21. Bf3 {[%emt 0:00:30]} Rf8 {
[%emt 0:00:30]} 22. Qe2 {[%emt 0:00:30]} c5 {[%emt 0:00:30]} 23. Bxe4 {[%emt 0:
00:30]} fxe4 {[%emt 0:00:30]} 24. Rxf8 {[%emt 0:00:30]} Rxf8 {[%emt 0:00:30]}
25. Qxe4 {[%emt 0:00:30]} Rf1+ {[%emt 0:00:30]} 26. Kh2 {[%emt 0:00:30]} Qe6 {
[%emt 0:00:30]} 27. Nf3 {[%emt 0:00:30]} Kg8 {[%emt 0:00:30]} 28. Qe2 {[%emt 0:
00:30]} Rxc1 {[%emt 0:00:30]} 29. Rxc1 {[%emt 0:00:30]} Nf4 {[%emt 0:00:30]}
30. Qe4 {[%emt 0:00:30]} Nh5 {[%emt 0:00:30]} 31. b3 {[%emt 0:00:30]} Ndf6 {
[%emt 0:00:30]} 32. Qa8+ {[%emt 0:00:30]} Kg7 {[%emt 0:00:30]} 1-0

[Event "FIN-ch Seniors 2019"]
[Site "Helsinki"]
[Date "2019.06.12"]
[Round "1.5"]
[White "Gronroos, Matti"]
[Black "Nyrhinen, Harri"]
[Result "1/2-1/2"]
[ECO "B17"]
[WhiteElo "1931"]
[BlackElo "2001"]
[Annotator "NA"]
[PlyCount "45"]
[EventDate "2019.06.10"]
[EventType "swiss"]
[EventCountry "FIN"]
[SourceTitle "playchess.com"]
[Source "ChessBase"]
[SourceQuality "1"]
[TimeControl "40/5400+30:1800+30"]

1. e4 {[%emt 0:00:00]} c6 {[%emt 0:00:00]} 2. d4 {[%emt 0:00:00]} d5 {[%emt 0:
00:00]} 3. Nc3 {[%emt 0:00:09]} dxe4 {[%emt 0:00:00]} 4. Nxe4 {[%emt 0:00:11]}
Nd7 {[%emt 0:00:00]} 5. Bc4 {[%emt 0:00:26]} Ngf6 {[%emt 0:00:18]} 6. Ng5 {
[%emt 0:00:16]} e6 {[%emt 0:00:20]} 7. Qe2 {[%emt 0:00:22]} Nb6 {[%emt 0:00:29]
} 8. Bd3 {[%emt 0:00:34]} h6 {[%emt 0:02:55]} 9. N5f3 {[%emt 0:00:22]} c5 {
[%emt 0:04:54]} 10. dxc5 {[%emt 0:00:24]} Bxc5 {[%emt 0:00:13]} 11. Ne5 {
[%emt 0:00:18]} O-O {[%emt 0:02:29]} 12. Ngf3 {[%emt 0:00:29]} Nbd7 {[%emt 0:
05:54]} 13. Bd2 {[%emt 0:03:45]} Qc7 {[%emt 0:04:55]} 14. O-O-O {[%emt 0:18:51]
} b6 {[%emt 0:25:19]} 15. Nxd7 {[%emt 0:05:53]} Bxd7 {[%emt 0:03:00]} 16. Ne5 {
[%emt 0:03:11]} Bc6 {[%emt 0:06:28]} 17. Nxc6 {[%emt 0:13:13]} Qxc6 {[%emt 0:
00:18]} 18. g4 {[%emt 0:05:27]} Qg2 {[%emt 0:15:08]} 19. f3 {[%emt 0:09:22]}
Qxe2 {[%emt 0:01:46]} 20. Bxe2 {[%emt 0:00:21]} Nd5 {[%emt 0:08:22]} 21. Bd3 {
[%emt 0:02:07]} Rac8 {[%emt 0:01:29]} 22. Be4 {[%emt 0:04:29]} Rfd8 {[%emt 0:
02:41]} 23. Rhe1 {[%emt 0:31:20]} 1/2-1/2

[Event "FIN-ch Seniors 2019"]
[Site "Helsinki"]
[Date "2019.06.12"]
[Round "1.6"]
[White "Sihvonen, Tero"]
[Black "Koskinen, Veikko"]
[Result "1/2-1/2"]
[ECO "B01"]
[WhiteElo "1983"]
[BlackElo "1866"]
[Annotator "NA"]
[PlyCount "55"]
[EventDate "2019.06.10"]
[EventType "swiss"]
[EventCountry "FIN"]
[SourceTitle "playchess.com"]
[Source "ChessBase"]
[SourceQuality "1"]
[TimeControl "40/5400+30:1800+30"]

1. e4 {[%emt 1:30:30]} d5 {[%emt 1:30:30]} 2. exd5 {[%emt 0:00:30]} Qxd5 {
[%emt 0:00:30]} 3. d4 {[%emt 0:00:30]} e5 {[%emt 0:00:30]} 4. dxe5 Qxd1+ {
[%emt 0:00:30]} 5. Kxd1 {[%emt 0:01:00]} Nc6 {[%emt 0:00:30]} 6. Nf3 {[%emt 0:
00:30]} Bg4 {[%emt 0:00:30]} 7. Bf4 {[%emt 0:00:30]} O-O-O+ {[%emt 0:00:30]} 8.
Nbd2 {[%emt 0:00:30]} f6 {[%emt 0:00:30]} 9. Kc1 {[%emt 0:00:30]} Bc5 {[%emt 0:
00:30]} 10. Bd3 {[%emt 0:00:30]} Bxf2 {[%emt 0:00:30]} 11. a3 {[%emt 0:00:30]}
Nxe5 {[%emt 0:00:30]} 12. Bxe5 {[%emt 0:00:30]} Bxf3 {[%emt 0:00:30]} 13. Nxf3
{[%emt 0:00:30]} fxe5 {[%emt 0:00:30]} 14. Nxe5 {[%emt 0:00:30]} Nh6 {[%emt 0:
00:30]} 15. Rf1 {[%emt 0:00:30]} Rdf8 {[%emt 0:00:30]} 16. Kb1 {[%emt 0:00:30]}
Bd4 {[%emt 0:00:30]} 17. Nf3 {[%emt 0:00:30]} Bf6 {[%emt 0:00:30]} 18. Ka2 {
[%emt 0:00:30]} g6 {[%emt 0:00:30]} 19. h3 {[%emt 0:00:30]} Nf7 {[%emt 0:00:30]
} 20. Rae1 {[%emt 0:00:30]} Nd6 {[%emt 0:00:30]} 21. g4 {[%emt 0:00:30]} Re8 {
[%emt 0:00:30]} 22. h4 {[%emt 0:00:30]} Kd7 {[%emt 0:00:30]} 23. g5 {[%emt 0:
00:30]} Rxe1 {[%emt 0:00:30]} 24. Rxe1 {[%emt 0:00:30]} Bg7 {[%emt 0:00:30]}
25. Rh1 {[%emt 0:00:30]} Rf8 {[%emt 0:00:30]} 26. Rh3 {[%emt 0:00:30]} c5 {
[%emt 0:00:30]} 27. Nd2 {[%emt 0:00:30]} b5 {[%emt 0:00:30]} 28. Rf3 {[%emt 0:
00:30]} 1/2-1/2

[Event "FIN-ch Seniors 2019"]
[Site "Helsinki"]
[Date "2019.06.12"]
[Round "1.7"]
[White "Terasalo, Kari"]
[Black "Ruotanen, Helge"]
[Result "1-0"]
[ECO "B06"]
[WhiteElo "1780"]
[BlackElo "1920"]
[Annotator "NA"]
[PlyCount "93"]
[EventDate "2019.06.10"]
[EventType "swiss"]
[EventCountry "FIN"]
[SourceTitle "playchess.com"]
[Source "ChessBase"]
[SourceQuality "1"]
[TimeControl "40/5400+30:1800+30"]

1. e4 {[%emt 0:00:00]} g6 {[%emt 0:00:00]} 2. Nf3 {[%emt 0:00:00]} Bg7 {
[%emt 0:00:13]} 3. c3 {[%emt 0:01:10]} d5 {[%emt 0:00:40]} 4. exd5 {[%emt 0:01:
27]} Qxd5 {[%emt 0:00:10]} 5. d4 {[%emt 0:01:25]} Nc6 {[%emt 0:03:47]} 6. Be2 {
[%emt 0:01:03]} Nh6 {[%emt 0:00:47]} 7. Bxh6 {[%emt 0:03:42]} Bxh6 {[%emt 0:00:
12]} 8. Nbd2 {[%emt 0:00:54]} O-O {[%emt 0:02:52]} 9. O-O {[%emt 0:01:06]} a5 {
[%emt 0:02:54]} 10. Re1 {[%emt 0:04:27]} a4 {[%emt 0:00:57]} 11. Nc4 {[%emt 0:
05:46]} f6 {[%emt 0:04:30]} 12. Ncd2 {[%emt 0:04:03]} Kg7 {[%emt 0:00:52]} 13.
Bc4 {[%emt 0:06:06]} Qd8 {[%emt 0:00:06]} 14. Ne4 {[%emt 0:06:08]} b6 {[%emt 0:
01:47]} 15. Bb5 {[%emt 0:05:25]} Bd7 {[%emt 0:06:14]} 16. Bxa4 {[%emt 0:55:18]}
Ra5 {[%emt 0:02:30]} 17. Bb3 {[%emt 0:00:00]} e6 {[%emt 0:03:18]} 18. Ng3 {
[%emt 0:00:00]} e5 {[%emt 0:02:00]} 19. dxe5 {[%emt 0:00:00]} fxe5 {[%emt 0:00:
02]} 20. Bd5 {[%emt 0:00:00]} Qe7 {[%emt 0:00:28]} 21. b4 {[%emt 0:00:00]} Ra3
{[%emt 0:01:19]} 22. Bxc6 {[%emt 0:00:00]} Bxc6 {[%emt 0:00:03]} 23. Nxe5 {
[%emt 0:00:00]} Qf6 {[%emt 0:01:24]} 24. Ng4 {[%emt 0:00:00]} Qf4 {[%emt 0:00:
46]} 25. Re7+ {[%emt 0:00:00]} Kh8 {[%emt 0:00:19]} 26. Qd4+ {[%emt 0:00:00]}
Qxd4 {[%emt 0:00:03]} 27. cxd4 {[%emt 0:00:00]} Bf4 {[%emt 0:00:06]} 28. Ne5 {
[%emt 0:00:00]} Bd5 {[%emt 0:03:31]} 29. Rxc7 {[%emt 0:00:00]} Bd2 {[%emt 0:00:
27]} 30. Nd7 {[%emt 0:00:00]} Rf7 {[%emt 0:02:59]} 31. Rc8+ {[%emt 0:00:00]}
Kg7 {[%emt 0:00:01]} 32. Nxb6 {[%emt 0:00:00]} Bb7 {[%emt 0:00:21]} 33. Rd8 {
[%emt 0:00:00]} Bxb4 {[%emt 0:00:34]} 34. Rd7 {[%emt 0:00:00]} Rxd7 {[%emt 0:
02:28]} 35. Nxd7 {[%emt 0:00:07]} Bc3 {[%emt 0:00:22]} 36. Rb1 {[%emt 0:00:56]}
Bd5 {[%emt 0:00:13]} 37. Ne2 {[%emt 0:00:48]} Bxa2 {[%emt 0:00:41]} 38. Rb8 {
[%emt 0:03:26]} Bd2 {[%emt 0:05:43]} 39. h3 {[%emt 0:00:50]} Bc4 {[%emt 0:00:
15]} 40. Ng3 {[%emt 0:00:00]} Ra1+ {[%emt 0:00:00]} 41. Kh2 {[%emt 0:01:27]} h5
{[%emt 0:01:02]} 42. Ne5 {[%emt 0:02:27]} Bd5 {[%emt 0:02:01]} 43. Rb6 {
[%emt 0:01:41]} h4 {[%emt 0:00:28]} 44. Rxg6+ {[%emt 0:02:43]} Kh7 {[%emt 0:00:
01]} 45. Nh5 {[%emt 0:03:20]} Bb3 {[%emt 0:04:22]} 46. d5 {[%emt 0:07:09]} Ra8
{[%emt 0:06:18]} 47. Nf6+ {[%emt 0:00:48]} 1-0

[Event "FIN-ch Seniors 2019"]
[Site "Helsinki"]
[Date "2019.06.12"]
[Round "1.8"]
[White "Visti, Heikki"]
[Black "Saharinen, Petri"]
[Result "1-0"]
[ECO "C10"]
[WhiteElo "2000"]
[BlackElo "1719"]
[Annotator "NA"]
[PlyCount "57"]
[EventDate "2019.06.10"]
[EventType "swiss"]
[EventCountry "FIN"]
[SourceTitle "playchess.com"]
[Source "ChessBase"]
[SourceQuality "1"]
[TimeControl "40/5400+30:1800+30"]

1. e4 {[%emt 1:30:30]} e6 {[%emt 1:30:30]} 2. d4 {[%emt 0:00:30]} d5 {[%emt 0:
00:30]} 3. Nd2 {[%emt 0:00:30]} Nf6 {[%emt 0:00:30]} 4. Bd3 {[%emt 0:00:30]}
dxe4 {[%emt 0:00:30]} 5. Nxe4 {[%emt 0:00:30]} Nbd7 {[%emt 0:00:30]} 6. Nf3 {
[%emt 0:00:30]} Be7 {[%emt 0:00:30]} 7. O-O {[%emt 0:00:30]} Nxe4 {[%emt 0:00:
30]} 8. Bxe4 {[%emt 0:00:30]} Nf6 {[%emt 0:00:30]} 9. Bd3 {[%emt 0:00:30]} a6 {
[%emt 0:00:30]} 10. c4 {[%emt 0:00:30]} O-O {[%emt 0:00:30]} 11. Bf4 {[%emt 0:
00:30]} Nd7 {[%emt 0:00:30]} 12. Rc1 {[%emt 0:00:30]} c5 {[%emt 0:00:30]} 13.
Bb1 {[%emt 0:00:30]} cxd4 {[%emt 0:00:30]} 14. Qxd4 {[%emt 0:00:30]} Bf6 {
[%emt 0:00:30]} 15. Qe4 {[%emt 0:00:30]} g6 {[%emt 0:00:30]} 16. Rfd1 {[%emt 0:
00:30]} Qb6 {[%emt 0:00:30]} 17. b3 {[%emt 0:00:30]} Rd8 {[%emt 0:00:30]} 18.
Rd6 {[%emt 0:00:30]} Qc5 {[%emt 0:00:30]} 19. Rcd1 {[%emt 0:00:30]} Be7 {
[%emt 0:00:30]} 20. R6d2 {[%emt 0:00:30]} a5 {[%emt 0:00:30]} 21. Ne5 {[%emt 0:
00:30]} f5 {[%emt 0:00:30]} 22. Qe2 {[%emt 0:00:30]} Qc7 {[%emt 0:00:30]} 23.
Nxg6 {[%emt 0:00:30]} e5 {[%emt 0:00:30]} 24. Nxe7+ {[%emt 0:00:30]} Kf7 {
[%emt 0:00:30]} 25. Nd5 {[%emt 0:00:30]} Qd6 {[%emt 0:00:30]} 26. Qh5+ {
[%emt 0:00:30]} Qg6 {[%emt 0:00:30]} 27. Qxg6+ {[%emt 0:00:30]} hxg6 {[%emt 0:
00:30]} 28. Bg5 {[%emt 0:00:30]} Re8 {[%emt 0:00:30]} 29. Nc7 {[%emt 0:00:30]}
1-0

[Event "FIN-ch Seniors 2019"]
[Site "Helsinki"]
[Date "2019.06.12"]
[Round "2.1"]
[White "Peltola, Leo"]
[Black "Kivipelto, Kaj"]
[Result "1-0"]
[ECO "B85"]
[WhiteElo "1933"]
[BlackElo "2130"]
[Annotator "NA"]
[PlyCount "40"]
[EventDate "2019.06.10"]
[EventType "swiss"]
[EventCountry "FIN"]
[SourceTitle "playchess.com"]
[Source "ChessBase"]
[SourceQuality "1"]
[TimeControl "40/5400+30:1800+30"]

1. e4 {[%emt 0:00:00]} c5 {[%emt 0:00:39]} 2. Nf3 {[%emt 0:00:00]} Nc6 {
[%emt 0:00:44]} 3. d4 {[%emt 0:00:00]} cxd4 {[%emt 0:00:01]} 4. Nxd4 {[%emt 0:
00:03]} Nf6 {[%emt 0:00:05]} 5. Nc3 {[%emt 0:00:12]} d6 {[%emt 0:00:07]} 6. Bg5
{[%emt 0:02:13]} Bd7 {[%emt 0:02:59]} 7. Be2 {[%emt 0:07:33]} Qb6 {[%emt 0:01:
18]} 8. Nb3 {[%emt 0:07:06]} e6 {[%emt 0:00:47]} 9. O-O {[%emt 0:01:19]} a6 {
[%emt 0:01:31]} 10. Be3 {[%emt 0:03:23]} Qc7 {[%emt 0:01:12]} 11. f4 {[%emt 0:
04:38]} Be7 {[%emt 0:02:26]} 12. Qe1 {[%emt 0:02:56]} b5 {[%emt 0:20:41]} 13.
a3 {[%emt 0:11:30]} O-O {[%emt 0:08:00]} 14. Qg3 {[%emt 0:07:00]} Rfe8 {
[%emt 0:19:12]} 15. Rad1 {[%emt 0:16:50]} b4 {[%emt 0:05:39]} 16. axb4 {
[%emt 0:03:05]} Nxb4 {[%emt 0:00:24]} 17. e5 {[%emt 0:10:03]} Nfd5 {[%emt 0:02:
08]} 18. Bd4 {[%emt 0:03:51]} f6 {[%emt 0:17:31]} 19. Nxd5 {[%emt 0:03:38]}
Nxd5 {[%emt 0:00:53]} 20. c4 {[%emt 0:01:11]} Nb4 {[%emt 0:08:12]} 1-0

[Event "FIN-ch Seniors 2019"]
[Site "Helsinki"]
[Date "2019.06.12"]
[Round "2.2"]
[White "Hurme, Harri"]
[Black "Auvinen, Esa"]
[Result "1/2-1/2"]
[ECO "D36"]
[WhiteElo "2122"]
[BlackElo "1899"]
[Annotator "NA"]
[PlyCount "119"]
[EventDate "2019.06.10"]
[EventType "swiss"]
[EventCountry "FIN"]
[SourceTitle "playchess.com"]
[Source "ChessBase"]
[SourceQuality "1"]
[TimeControl "40/5400+30:1800+30"]

1. d4 {[%emt 0:07:27]} Nf6 {[%emt 0:00:00]} 2. c4 {[%emt 0:00:06]} e6 {[%emt 0:
00:00]} 3. Nc3 {[%emt 0:00:14]} d5 {[%emt 0:00:01]} 4. cxd5 {[%emt 0:00:15]}
exd5 {[%emt 0:00:13]} 5. Bg5 {[%emt 0:00:10]} c6 {[%emt 0:00:41]} 6. Qc2 {
[%emt 0:00:10]} Bg4 {[%emt 0:04:41]} 7. e3 {[%emt 0:07:19]} h6 {[%emt 0:01:54]}
8. Bh4 {[%emt 0:01:57]} g5 {[%emt 0:02:43]} 9. Bg3 {[%emt 0:00:05]} Bh5 {
[%emt 0:01:54]} 10. Bd3 {[%emt 0:01:19]} Rg8 {[%emt 0:00:42]} 11. Nf3 {[%emt 0:
01:26]} Bg6 {[%emt 0:00:45]} 12. O-O {[%emt 0:04:20]} Bxd3 {[%emt 0:00:11]} 13.
Qxd3 {[%emt 0:00:02]} Bd6 {[%emt 0:00:30]} 14. e4 {[%emt 0:04:25]} dxe4 {
[%emt 0:08:00]} 15. Rae1 {[%emt 0:00:34]} Kf8 {[%emt 0:01:05]} 16. Nxe4 {
[%emt 0:00:18]} Nxe4 {[%emt 0:00:10]} 17. Rxe4 {[%emt 0:02:43]} Na6 {[%emt 0:
02:05]} 18. Rfe1 {[%emt 0:02:40]} Bxg3 {[%emt 0:08:35]} 19. hxg3 {[%emt 0:00:
40]} Nc7 {[%emt 0:06:11]} 20. Qb3 {[%emt 0:01:14]} b6 {[%emt 0:03:28]} 21. Ne5
{[%emt 0:04:53]} Qd5 {[%emt 0:04:31]} 22. Nxf7 {[%emt 0:00:43]} Qxb3 {[%emt 0:
03:31]} 23. axb3 {[%emt 0:00:04]} Kxf7 {[%emt 0:03:29]} 24. Re7+ {[%emt 0:00:
04]} Kf6 {[%emt 0:01:41]} 25. Rxc7 {[%emt 0:00:03]} Rac8 {[%emt 0:03:27]} 26.
Rxa7 {[%emt 0:00:47]} Rcd8 {[%emt 0:00:39]} 27. Re4 {[%emt 0:02:47]} Rd6 {
[%emt 0:01:46]} 28. Rh7 {[%emt 0:02:04]} Kg6 {[%emt 0:00:56]} 29. Rhe7 {
[%emt 0:00:44]} Kf6 {[%emt 0:03:48]} 30. Rh7 {[%emt 0:07:36]} Kg6 {[%emt 0:00:
23]} 31. Ra7 {[%emt 0:00:28]} Rgd8 {[%emt 0:03:43]} 32. g4 {[%emt 0:00:39]} Kf6
{[%emt 0:00:46]} 33. Rh7 {[%emt 0:02:34]} Kg6 {[%emt 0:00:26]} 34. Rb7 {
[%emt 0:00:11]} b5 {[%emt 0:00:56]} 35. d5 {[%emt 0:01:56]} cxd5 {[%emt 0:00:
41]} 36. Rd4 {[%emt 0:00:27]} Rc8 {[%emt 0:00:39]} 37. Rxb5 {[%emt 0:00:38]}
Rc1+ {[%emt 0:03:35]} 38. Kh2 {[%emt 0:00:02]} Rc2 {[%emt 0:00:24]} 39. Kg3 {
[%emt 0:08:30]} Rxb2 {[%emt 0:01:00]} 40. f3 {[%emt 0:03:06]} Kf6 {[%emt 0:01:
47]} 41. Kh3 {[%emt 0:37:14]} Ke6 {[%emt 0:32:36]} 42. f4 {[%emt 0:11:02]} gxf4
{[%emt 0:01:42]} 43. Rxf4 {[%emt 0:00:04]} d4 {[%emt 0:03:41]} 44. Rf1 {
[%emt 0:02:07]} d3 {[%emt 0:01:04]} 45. Rd1 {[%emt 0:00:41]} d2 {[%emt 0:00:16]
} 46. Kg3 {[%emt 0:01:42]} Kf6 {[%emt 0:03:07]} 47. Kf4 {[%emt 0:01:47]} Rd4+ {
[%emt 0:05:28]} 48. Kf3 {[%emt 0:02:06]} Rd3+ {[%emt 0:01:54]} 49. Ke4 {
[%emt 0:02:31]} Rdxb3 {[%emt 0:04:49]} 50. Rxb3 {[%emt 0:01:10]} Rxb3 {[%emt 0:
00:02]} 51. Rxd2 {[%emt 0:00:13]} Kg5 {[%emt 0:00:13]} 52. Rd6 {[%emt 0:01:21]}
Rg3 {[%emt 0:00:56]} 53. Rd2 {[%emt 0:00:40]} Kxg4 {[%emt 0:00:25]} 54. Ra2 {
[%emt 0:01:20]} h5 {[%emt 0:00:26]} 55. Rf2 {[%emt 0:00:47]} h4 {[%emt 0:01:12]
} 56. Rf4+ {[%emt 0:00:31]} Kg5 {[%emt 0:00:20]} 57. Rf5+ {[%emt 0:00:16]} Kg4
{[%emt 0:00:25]} 58. Rf4+ {[%emt 0:00:09]} Kg5 {[%emt 0:00:08]} 59. Rf5+ {
[%emt 0:00:04]} Kg4 {[%emt 0:00:32]} 60. Rf4+ {[%emt 0:00:10]} 1/2-1/2